bitfinex-derivatives/quotes_SOLF0:USTF0_20241127
["timestamp","ask_amount","ask_price","bid_price","bid_amount"]
[1732694524530,16.90024891,233.5,233.22,1.2226]
[1732694524531,16.90024891,233.43,233.22,1.2226]
[1732694524732,16.90024891,233.43,233.22,16.26012929]
[1732694525336,16.90024891,233.38,233.22,1.2226]
[1732694526130,16.90024891,233.38,233.23,4.32]
[1732694526533,16.90024891,233.38,233.36,2.143]
[1732694526737,12.8,233.63,233.32,4.32]
[1732694526929,16.90024891,233.48,233.46,2.1421]
[1732694527130,2.141,233.6,233.38,4.32]
[1732694527131,16.90024891,233.52,233.38,4.32]
[1732694527333,16.90024891,233.52,233.34,2.4735]
[1732694527334,16.90024891,233.52,233.39,5.5277]
[1732694527535,16.90024891,233.52,233.48,2.142]
[1732694527942,16.90024891,233.52,233.39,5.5277]
[1732694529238,16.90024891,233.52,233.47,2.142]
[1732694529435,16.90024891,233.52,233.39,5.5277]
[1732694529832,16.90024891,233.52,233.49,2.1418]
[1732694530437,16.90024891,233.52,233.5,2.1418]
[1732694531444,16.90024891,233.56,233.53,2.1415]
[1732694531644,16.90024891,233.6,233.48,4.32]
[1732694531832,16.90024891,233.6,233.58,2.141]
[1732694533238,16.90024891,233.6,233.49,2.5179]
[1732694533440,16.90024891,233.6,233.56,2.1412]
[1732694533640,16.90024891,233.6,233.49,2.5179]
[1732694533840,4.32,233.71,233.59,2.1409]
[1732694533841,16.90024891,233.64,233.59,2.1409]
[1732694534142,16.90024891,233.64,233.49,2.5179]
[1732694534738,16.90024891,233.6,233.49,2.5179]
[1732694534937,16.90024891,233.64,233.49,2.5179]
[1732694534938,16.90024891,233.56,233.49,2.5179]
[1732694535138,16.90024891,233.56,233.51,2.1417]
[1732694535636,16.90024891,233.56,233.52,2.1416]
[1732694535945,16.90024891,233.56,233.49,2.5179]
[1732694536139,16.90024891,233.56,233.51,2.1417]
[1732694536441,16.90024891,233.56,233.49,2.5179]
[1732694536641,16.90024891,233.6,233.54,2.1414]
[1732694537338,16.90024891,233.6,233.49,2.5179]
[1732694537543,16.90024891,233.64,233.49,2.5179]
[1732694538835,4.32,233.69,233.53,2.1415]
[1732694538836,16.90024891,233.6,233.53,2.1415]
[1732694540140,16.90024891,233.64,233.54,2.1414]
[1732694540543,2.1406,233.63,233.54,2.1414]
[1732694540742,16.90024891,233.64,233.55,2.1413]
[1732694541448,19.04084891,233.64,233.55,2.1413]
[1732694542745,19.04084891,233.64,233.56,2.1412]
[1732694543040,2.1407,233.63,233.44,16.90024891]
[1732694543248,2.1407,233.63,233.55,2.1413]
[1732694543942,16.90024891,233.64,233.44,16.90024891]
[1732694545242,4.1,233.66,233.44,16.90024891]
[1732694545449,29.71024891,233.72,233.48,16.90024891]
[1732694545749,4.1,233.71,233.52,16.90024891]
[1732694546048,4.1,233.71,233.53,3.8257]
[1732694546647,16.90024891,233.72,233.53,3.8257]
[1732694546848,21.00024891,233.72,233.53,3.8257]
[1732694547546,21.00024891,233.72,233.54,1.07094937]
[1732694547846,21.00024891,233.72,233.53,3.8257]
[1732694547847,21.00024891,233.72,233.55,1.07094937]
[1732694548048,21.00024891,233.72,233.53,3.8257]
[1732694548246,21.00024891,233.72,233.54,2.78437061]
[1732694548443,21.00024891,233.72,233.66,2.1403]
[1732694548645,12.81,233.8,233.56,16.90024891]
[1732694548646,16.90024891,233.76,233.56,16.90024891]
[1732694548844,2.1396,233.74,233.65,2.1404]
[1732694549442,2.1396,233.74,233.66,2.1403]
[1732694549644,16.90024891,233.76,233.56,16.90024891]
[1732694549841,2.1395,233.75,233.57,2.78424292]
[1732694550045,16.90024891,233.76,233.66,2.1403]
[1732694550847,16.90024891,233.76,233.56,16.90024891]
[1732694551039,16.90024891,233.76,233.57,2.78428442]
[1732694551243,16.90024891,233.76,233.58,2.78428442]
[1732694551450,19.03964891,233.76,233.68,2.1401]
[1732694551848,19.03964891,233.76,233.57,0.12137533]
[1732694551849,16.90024891,233.76,233.57,0.12137533]
[1732694552048,16.90024891,233.76,233.58,2.78426224]
[1732694552253,16.90024891,233.76,233.59,2.78426224]
[1732694552451,16.90024891,233.76,233.6,2.78426224]
[1732694552653,16.90024891,233.76,233.61,2.78426224]
[1732694552849,16.90024891,233.76,233.62,2.78426224]
[1732694553046,16.90024891,233.76,233.63,2.78426224]
[1732694553246,16.90024891,233.76,233.64,2.78426224]
[1732694553453,16.90024891,233.76,233.59,0.12137533]
[1732694553454,16.90024891,233.76,233.65,2.78426224]
[1732694553750,16.90024891,233.76,233.66,1.07087009]
[1732694553958,16.90024891,233.76,233.7,2.1399]
[1732694554348,16.90024891,233.76,233.6,0.12227256]
[1732694554652,16.90024891,233.76,233.72,2.1398]
[1732694554952,16.90024891,233.76,233.61,2.90656782]
[1732694554953,23.13934891,233.8,233.61,0.12227256]
[1732694555152,23.13934891,233.8,233.62,2.78409775]
[1732694555354,21.00024891,233.8,233.63,2.90637031]
[1732694555652,21.00024891,233.8,233.64,5.33929775]
[1732694555844,2.1393,233.78,233.65,2.78409775]
[1732694556051,2.1393,233.78,233.66,2.78409775]
[1732694556251,2.1393,233.78,233.71,2.1399]
[1732694556452,2.1393,233.78,233.72,1.07080683]
[1732694556645,2.1393,233.78,233.71,2.1399]
[1732694556844,2.1393,233.78,233.72,1.07078628]
[1732694557048,21.00024891,233.8,233.64,2.67747256]
[1732694557254,16.90024891,233.8,233.66,0.12227256]
[1732694557552,16.90024891,233.8,233.67,2.78404434]
[1732694557748,16.90024891,233.8,233.68,2.78404434]
[1732694558051,3.88,233.86,233.69,2.78404434]
[1732694558254,16.90024891,233.88,233.71,0.12227256]
[1732694558550,22.91824891,233.92,233.73,0.12227256]
[1732694558752,10.10194091,233.91,233.73,0.12227256]
[1732694558951,10.10194091,233.91,233.79,2.1391]
[1732694559151,10.10194091,233.91,233.8,2.78404434]
[1732694559357,16.90024891,233.88,233.81,1.07078628]
[1732694559546,16.90024891,233.88,233.75,1.3006]
[1732694559848,16.90024891,233.88,233.76,2.78277529]
[1732694560151,16.90024891,233.88,233.77,2.90504785]
[1732694560450,6.018,233.92,233.84,2.1387]
[1732694560651,3.88,233.92,233.78,1.7124771]
[1732694560848,3.88,233.92,233.79,2.78241031]
[1732694561049,3.88,233.92,233.87,2.1384]
[1732694561253,16.90024891,233.93,233.76,2.71887256]
[1732694561448,3.88,233.96,233.9,2.1381]
[1732694561751,19.03774891,233.97,233.9,2.1381]
[1732694561953,16.90024891,233.97,233.79,16.90024891]
[1732694562154,16.90024891,233.97,233.92,2.138]
[1732694562349,16.90024891,233.97,233.81,1.71198324]
[1732694562551,6.0174,233.99,233.92,2.1379]
[1732694562754,16.90024891,234.01,233.79,16.90024891]
[1732694562958,16.90024891,234.01,233.84,3.88]
[1732694563259,16.90024891,234.01,233.89,2.1382]
[1732694563459,16.90024891,234.01,233.84,3.88]
[1732694563657,16.90024891,234.01,233.86,1.213]
[1732694563856,2.1374,233.98,233.86,1.213]
[1732694564051,16.90024891,233.97,233.86,1.213]
[1732694564559,16.90024891,233.97,233.9,2.1381]
[1732694564753,16.90024891,233.97,233.86,1.213]
[1732694565056,16.90024891,234.01,233.86,1.213]
[1732694565958,19.03744891,234.01,233.92,2.138]
[1732694566261,19.03744891,234.01,233.86,1.213]
[1732694566262,16.90024891,234.01,233.86,1.213]
[1732694566760,2.1374,233.98,233.91,2.138]
[1732694567158,16.90024891,234.01,233.86,1.213]
[1732694567458,16.90024891,234.01,233.93,2.1378]
[1732694567958,19.03744891,234.01,233.86,1.213]
[1732694568157,16.90024891,234.01,233.86,1.213]
[1732694568957,2.1373,234.0,233.86,1.213]
[1732694569163,16.90024891,233.93,233.78,3.68]
[1732694569359,16.90024891,233.93,233.85,2.1386]
[1732694569360,19.03814891,233.93,233.85,2.1386]
[1732694570269,2.138,233.92,233.85,2.1386]
[1732694570562,16.90024891,233.93,233.85,2.1386]
[1732694570765,19.03814891,233.93,233.85,2.1386]
[1732694571767,19.03814891,233.93,233.8,1.2265]
[1732694572065,19.03814891,233.93,233.86,2.1385]
[1732694574866,19.03814891,233.93,233.8,1.2265]
[1732694574867,16.90024891,233.93,233.8,1.2265]
[1732694575366,5.8178,233.94,233.69,0.12136356]
[1732694575367,16.90024891,233.88,233.69,0.12136356]
[1732694575567,16.90024891,233.88,233.7,7.72258505]
[1732694575771,2.1384,233.87,233.76,2.1394]
[1732694575972,2.1384,233.87,233.7,4.9407]
[1732694576169,16.90024891,233.88,233.71,2.78214898]
[1732694576371,10.54806297,233.85,233.7,1.2607]
[1732694576573,10.54806297,233.85,233.71,1.07019002]
[1732694576779,10.54806297,233.85,233.7,1.2607]
[1732694576971,2.1387,233.84,233.77,2.1393]
[1732694577178,10.54806297,233.85,233.7,1.2607]
[1732694577378,10.54806297,233.85,233.71,1.07021749]
[1732694577578,10.54806297,233.88,233.72,10.54806297]
[1732694577974,12.68636297,233.88,233.76,2.1394]
[1732694578175,12.68636297,233.88,233.72,10.54806297]
[1732694578176,10.54806297,233.88,233.72,10.54806297]
[1732694578481,16.87448253,233.89,233.7,1.2607]
[1732694578774,2.1385,233.86,233.71,1.07014092]
[1732694578975,16.87448253,233.89,233.7,1.2607]
[1732694579281,2.1385,233.87,233.71,1.07017758]
[1732694579476,2.1385,233.87,233.72,1.07017758]
[1732694579674,2.1385,233.87,233.7,1.2607]
[1732694579876,2.1385,233.87,233.71,1.07017409]
[1732694580178,2.1385,233.87,233.72,1.07017468]
[1732694580379,2.1383,233.88,233.81,2.1389]
[1732694580579,16.87448253,233.89,233.71,1.07017608]
[1732694580779,16.87448253,233.89,233.72,1.07017608]
[1732694580980,2.1384,233.88,233.75,2.1395]
[1732694581182,16.87448253,233.89,233.7,1.2607]
[1732694581374,16.87448253,233.89,233.71,1.07021168]
[1732694581575,2.1388,233.84,233.76,2.1394]
[1732694581781,16.87448253,233.85,233.7,1.2607]
[1732694582080,2.1389,233.82,233.76,2.1394]
[1732694582279,3.68,233.84,233.7,1.2607]
[1732694582681,2.139,233.81,233.74,2.1396]
[1732694583074,2.139,233.81,233.7,1.2607]
[1732694583481,2.1392,233.79,233.7,1.2607]
[1732694584088,2.1392,233.79,233.73,2.1397]
[1732694584275,3.68,233.84,233.73,2.1397]
[1732694584481,3.68,233.84,233.7,1.2607]
[1732694584984,2.1391,233.8,233.74,2.1396]
[1732694586379,2.1394,233.77,233.71,2.1398]
[1732694587283,16.87448253,233.81,233.68,1.3103]
[1732694587475,16.87448253,233.81,233.72,2.1398]
[1732694587476,2.1392,233.78,233.72,2.1398]
[1732694587884,2.1392,233.78,233.68,1.3103]
[1732694587885,3.48,233.78,233.68,1.3103]
[1732694589178,2.1392,233.79,233.71,2.1399]
[1732694589382,5.6192,233.79,233.68,1.3103]
[1732694589976,3.48,233.79,233.68,1.3103]
[1732694590581,2.1395,233.75,233.68,2.1401]
[1732694590789,2.1395,233.75,233.63,1.2212]
[1732694590975,2.1395,233.75,233.68,2.1401]
[1732694591580,16.87448253,233.77,233.66,2.1403]
[1732694591785,16.87448253,233.77,233.61,2.5443]
[1732694592182,16.87448253,233.77,233.66,2.1403]
[1732694592385,16.87448253,233.77,233.61,2.5443]
[1732694593087,3.48,233.76,233.62,1.07065617]
[1732694593289,2.1395,233.75,233.68,2.1401]
[1732694594092,3.48,233.76,233.68,2.1401]
[1732694594288,2.1396,233.74,233.68,2.1401]
[1732694594780,2.1396,233.75,233.65,2.1404]
[1732694594984,2.1396,233.75,233.61,2.5443]
[1732694594985,3.48,233.76,233.61,2.5443]
[1732694595181,3.48,233.76,233.62,1.07061942]
[1732694595385,3.48,233.76,233.64,2.1405]
[1732694596192,3.48,233.76,233.61,1.2623]
[1732694596488,3.48,233.76,233.65,2.1404]
[1732694596893,2.1399,233.71,233.65,2.1404]
[1732694600591,10.55981881,233.72,233.66,2.1403]
[1732694601290,12.69961881,233.72,233.66,2.1403]
[1732694601894,3.28,233.71,233.66,2.1403]
[1732694602494,5.4199,233.71,233.66,2.1403]
[1732694602693,5.4199,233.71,233.65,2.1404]
[1732694602995,5.4199,233.71,233.61,1.2623]
[1732694603187,5.4199,233.71,233.66,2.1403]
[1732694603495,3.28,233.71,233.66,2.1403]
[1732694604595,10.55981881,233.72,233.68,2.1402]
[1732694604892,10.55981881,233.72,233.61,1.2623]
[1732694604893,3.28,233.71,233.61,1.2623]
[1732694605192,3.28,233.71,233.65,2.1404]
[1732694605389,3.28,233.71,233.61,1.2623]
[1732694605584,10.55981881,233.69,233.56,1.3118]
[1732694605792,10.55981881,233.66,233.56,1.3118]
[1732694605989,10.55981881,233.63,233.46,10.55981881]
[1732694606288,3.28,233.62,233.47,3.61784972]
[1732694606503,5.4208,233.62,233.56,2.1412]
[1732694606693,3.28,233.62,233.47,2.5469]
[1732694606893,10.55981881,233.6,233.47,2.5469]
[1732694607087,2.141,233.59,233.47,2.5469]
[1732694607293,10.55981881,233.6,233.47,2.5469]
[1732694607797,12.70071881,233.6,233.52,2.1415]
[1732694607989,12.70071881,233.6,233.47,2.5469]
[1732694608187,12.70071881,233.6,233.47,13.10671881]
[1732694609293,12.70071881,233.6,233.54,2.1414]
[1732694609896,10.55981881,233.6,233.54,2.1414]
[1732694610493,3.28,233.59,233.55,2.43246]
[1732694610805,3.28,233.59,233.55,0.29116]
[1732694611401,10.55981881,233.57,233.55,0.29116]
[1732694611597,2.1416,233.53,233.43,2.1424]
[1732694611898,10.55981881,233.5,233.38,1.2232]
[1732694612999,10.55981881,233.5,233.41,2.1426]
[1732694613195,10.55981881,233.5,233.38,1.2232]
[1732694614002,10.55981881,233.5,233.46,2.1422]
[1732694614799,10.55981881,233.53,233.4,10.55981881]
[1732694615017,3.28,233.55,233.4,10.55981881]
[1732694615306,13.83981881,233.59,233.53,2.1415]
[1732694615896,10.55981881,233.62,233.46,10.55981881]
[1732694616103,13.83981881,233.62,233.46,10.55981881]
[1732694616506,13.83981881,233.62,233.46,13.83981881]
[1732694616709,13.83981881,233.62,233.56,2.1412]
[1732694617002,13.83981881,233.62,233.46,13.83981881]
[1732694617207,13.83981881,233.62,233.56,2.1412]
[1732694617402,13.83981881,233.62,233.46,13.83981881]
[1732694617605,10.55981881,233.62,233.46,13.83981881]
[1732694617811,10.55981881,233.62,233.61,2.1408]
[1732694618008,10.55981881,233.65,233.49,10.55981881]
[1732694618305,10.55981881,233.65,233.5,1.2686]
[1732694618705,10.55981881,233.65,233.6,2.1409]
[1732694619106,10.55981881,233.62,233.5,1.2686]
[1732694619308,10.55981881,233.59,233.5,1.2686]
[1732694619913,10.55981881,233.59,233.55,2.1413]
[1732694621108,10.55981881,233.56,233.44,2.4896]
[1732694621309,10.55981881,233.56,233.45,1.07139322]
[1732694621604,10.55981881,233.56,233.44,2.4896]
[1732694621809,10.55981881,233.56,233.45,1.07140029]
[1732694622003,10.55981881,233.56,233.47,2.142]
[1732694622202,10.55981881,233.56,233.44,2.4896]
[1732694622407,10.55981881,233.56,233.45,1.07140681]
[1732694622604,10.55981881,233.56,233.5,2.1418]
[1732694623609,10.55981881,233.56,233.44,2.4896]
[1732694623916,10.55981881,233.59,233.45,1.07140078]
[1732694624110,10.55981881,233.59,233.46,1.07140078]
[1732694624313,10.55981881,233.59,233.44,2.4896]
[1732694624513,10.55981881,233.59,233.45,1.07140527]
[1732694624718,10.55981881,233.59,233.54,2.1414]
[1732694630120,10.55981881,233.59,233.55,2.1413]
[1732694631619,10.55981881,233.59,233.53,2.1415]
[1732694631820,10.55981881,233.59,233.45,3.08]
[1732694632314,10.55981881,233.59,233.45,13.63981881]
[1732694632913,10.55981881,233.59,233.56,2.1412]
[1732694633319,10.55981881,233.59,233.44,1.2398]
[1732694633518,10.55981881,233.46,233.35,1.2838]
[1732694633720,10.55981881,233.46,233.42,2.1425]
[1732694633916,10.55981881,233.46,233.37,1.2017]
[1732694634509,10.55981881,233.46,233.38,1.0715295]
[1732694634819,10.55981881,233.46,233.39,1.0715295]
[1732694635011,10.55981881,233.46,233.37,1.2017]
[1732694635211,10.55981881,233.46,233.44,0.17646]
[1732694637818,10.55981881,233.49,233.44,0.17646]
[1732694638519,10.55981881,233.49,233.44,2.31876]
[1732694640421,10.55981881,233.52,233.44,0.17646]
[1732694640620,10.55981881,233.55,233.44,0.17646]
[1732694642323,10.55981881,233.52,233.44,0.17646]
[1732694642622,10.55981881,233.52,233.48,2.142]
[1732694642818,10.55981881,233.55,233.44,0.17646]
[1732694643216,10.55981881,233.55,233.44,2.70506]
[1732694643422,10.55981881,233.55,233.44,4.03536]
[1732694643920,10.55981881,233.49,233.44,0.17646]
[1732694644329,10.55981881,233.46,233.44,0.17646]
[1732694644725,10.55981881,233.46,233.34,2.1432]
[1732694645029,10.55981881,233.41,233.35,2.78601056]
[1732694645224,2.1428,233.39,233.36,1.07154252]
[1732694645425,10.55981881,233.38,233.31,2.1435]
[1732694645621,2.9,233.41,233.32,2.78611212]
[1732694645821,10.55981881,233.44,233.33,2.78611212]
[1732694646020,10.55981881,233.44,233.34,2.78611212]
[1732694646221,10.55981881,233.44,233.35,2.78611212]
[1732694646423,10.55981881,233.44,233.36,1.07156131]
[1732694646621,10.55981881,233.44,233.37,1.07156131]
[1732694646831,10.55981881,233.44,233.37,2.143]
[1732694647019,10.55981881,233.44,233.38,1.07155439]
[1732694647222,12.84,233.61,233.3,10.68312543]
[1732694647421,10.55981881,233.45,233.32,0.12330662]
[1732694647623,10.55981881,233.45,233.33,2.78604141]
[1732694647830,10.55981881,233.45,233.34,2.78604141]
[1732694648031,12.70211881,233.45,233.37,2.143]
[1732694648227,12.70211881,233.45,233.38,1.07155248]
[1732694648430,10.55981881,233.45,233.3,0.12326138]
[1732694648636,2.1424,233.44,233.36,2.1431]
[1732694648835,2.1424,233.44,233.37,1.07155422]
[1732694649031,2.1424,233.44,233.3,0.12326138]
[1732694649032,10.55981881,233.42,233.38,1.07155422]
[1732694649237,10.55981881,233.42,233.36,2.1431]
[1732694649441,10.55981881,233.42,233.37,1.07155439]
[1732694649738,2.9,233.49,233.38,1.07155439]
[1732694650045,10.55981881,233.45,233.37,2.143]
[1732694650341,10.55981881,233.45,233.38,1.0715483]
[1732694650531,10.55981881,233.45,233.39,1.0715483]
[1732694650735,10.55981881,233.45,233.37,2.143]
[1732694650936,10.55981881,233.45,233.38,1.0715698]
[1732694651133,10.55981881,233.45,233.37,2.143]
[1732694651333,10.55981881,233.45,233.38,1.0715698]
[1732694651537,10.55981881,233.45,233.31,0.12345498]
[1732694651733,10.55981881,233.45,233.32,2.7860581]
[1732694651934,10.55981881,233.48,233.33,2.7860581]
[1732694652243,10.55981881,233.48,233.44,2.1424]
[1732694652445,10.55981881,233.48,233.36,2.9]
[1732694652646,10.55981881,233.48,233.45,2.1422]
[1732694652938,13.45981881,233.51,233.37,1.2882]
[1732694653134,21.65896383,233.61,233.41,2.1426]
[1732694653335,10.55981881,233.53,233.42,1.07149346]
[1732694653643,2.9,233.59,233.39,10.55981881]
[1732694653941,10.55981881,233.55,233.51,2.1417]
[1732694654645,10.55981881,233.59,233.55,2.1413]
[1732694654842,10.55981881,233.59,233.45,1.2513]
[1732694654843,10.55981881,233.59,233.46,1.0713806]
[1732694655142,10.55981881,233.59,233.45,2.584]
[1732694655342,10.55981881,233.59,233.46,1.07137632]
[1732694655540,10.19324467,233.58,233.46,10.55981881]
[1732694655745,10.55981881,233.69,233.52,10.55981881]
[1732694655934,10.55981881,233.69,233.45,2.584]
[1732694655935,18.53355129,233.68,233.55,10.55981881]
[1732694656141,18.53355129,233.67,233.63,2.1406]
[1732694656341,18.53355129,233.66,233.63,2.1406]
[1732694656545,8.34110304,233.65,233.57,1.2254]
[1732694656741,18.53355129,233.65,233.57,1.2254]
[1732694656938,18.53355129,233.64,233.57,1.2254]
[1732694657147,8.34110304,233.63,233.56,2.1412]
[1732694657446,18.53355129,233.63,233.56,2.1412]
[1732694657641,10.55981881,233.66,233.56,2.1412]
[1732694657642,10.19244825,233.62,233.56,2.1412]
[1732694657943,10.19244825,233.61,233.56,2.1412]
[1732694658143,10.55981881,233.66,233.53,4.1077]
[1732694658448,10.19044159,233.65,233.53,14.66751881]
[1732694658636,10.19044159,233.64,233.53,14.66751881]
[1732694658842,10.55981881,233.69,233.63,2.1406]
[1732694659045,18.5265955,233.68,233.6,2.9]
[1732694659241,10.18856527,233.67,233.62,2.1407]
[1732694659450,10.18856527,233.66,233.6,2.9]
[1732694659646,10.18856527,233.66,233.57,1.223]
[1732694659854,10.18856527,233.72,233.6,2.9]
[1732694660045,10.55981881,233.7,233.57,1.223]
[1732694660244,10.55981881,233.76,233.53,1.2077]
[1732694660245,10.55981881,233.67,233.53,1.2077]
[1732694660439,10.55981881,233.67,233.54,2.9]
[1732694660647,18.52426467,233.66,233.54,2.9]
[1732694660947,10.18856527,233.65,233.59,2.1409]
[1732694661146,10.18856527,233.64,233.59,2.1409]
[1732694661343,10.18856527,233.63,233.59,2.1409]
[1732694661543,10.55981881,233.64,233.54,2.9]
[1732694661750,10.18407559,233.63,233.54,2.9]
[1732694662552,10.55981881,233.67,233.54,2.9]
[1732694662754,18.51613552,233.66,233.54,2.9]
[1732694662945,18.51613552,233.65,233.54,2.9]
[1732694663144,10.18286265,233.65,233.54,2.9]
[1732694663341,10.18286265,233.64,233.54,2.9]
[1732694663547,10.55981881,233.71,233.54,2.9]
[1732694663851,18.5141094,233.7,233.64,2.1405]
[1732694664051,18.5141094,233.69,233.64,2.1405]
[1732694664351,18.5141094,233.68,233.64,2.1405]
[1732694664547,8.33236924,233.67,233.64,2.1405]
[1732694664751,18.5141094,233.67,233.64,2.1405]
[1732694664953,18.5141094,233.66,233.64,2.1405]
[1732694665155,10.18174016,233.65,233.64,2.1405]
[1732694665350,10.18174016,233.7,233.61,2.9]
[1732694665650,18.51220107,233.69,233.63,10.55981881]
[1732694665953,18.51220107,233.68,233.63,10.55981881]
[1732694666150,10.18174016,233.67,233.65,2.1404]
[1732694666351,10.18174016,233.66,233.64,1.3301]
[1732694666552,10.55981881,233.77,233.64,1.3301]
[1732694666553,6.17954016,233.65,233.64,1.3301]
[1732694666752,10.55981881,233.77,233.71,2.1398]
[1732694666950,10.55981881,233.77,233.64,1.3301]
[1732694666951,8.32785753,233.76,233.64,1.3301]
[1732694667157,2.9,233.79,233.64,1.3301]
[1732694667352,12.69891881,233.8,233.64,1.3301]
[1732694667552,10.55981881,233.8,233.64,1.3301]
[1732694667758,10.55981881,233.8,233.72,2.1398]
[1732694668146,10.55981881,233.8,233.64,1.3301]
[1732694668351,2.1392,233.79,233.7,2.1399]
[1732694668854,10.55981881,233.74,233.62,2.5068]
[1732694669052,10.55981881,233.71,233.58,2.9]
[1732694669355,10.55981881,233.71,233.61,2.1408]
[1732694669750,12.69981881,233.71,233.57,2.9]
[1732694669951,12.69981881,233.71,233.63,2.1406]
[1732694670553,2.9,233.75,233.66,2.1403]
[1732694670554,5.0396,233.75,233.66,2.1403]
[1732694670756,10.55981881,233.74,233.66,2.1403]
[1732694671446,10.55981881,233.74,233.64,2.1404]
[1732694671447,12.69941881,233.74,233.64,2.1404]
[1732694671751,12.69941881,233.74,233.59,10.55981881]
[1732694671752,10.55981881,233.74,233.59,10.55981881]
[1732694672258,10.55981881,233.71,233.58,2.5732]
[1732694672657,2.5775,233.73,233.58,2.5732]
[1732694672956,2.5775,233.73,233.59,10.55981881]
[1732694673158,10.55981881,233.74,233.68,2.1401]
[1732694673350,10.55981881,233.74,233.59,10.55981881]
[1732694673753,10.55981881,233.74,233.69,2.1401]
[1732694675455,10.55981881,233.74,233.7,2.14]
[1732694676051,10.55981881,233.74,233.68,2.1401]
[1732694677156,10.55981881,233.74,233.69,2.1401]
[1732694678956,10.55981881,233.74,233.7,2.14]
[1732694681560,10.55981881,233.74,233.71,2.1399]
[1732694681851,10.55981881,233.74,233.63,2.72]
[1732694682158,10.55981881,233.74,233.69,2.14]
[1732694682359,10.55981881,233.74,233.63,2.72]
[1732694682756,10.55981881,233.74,233.69,2.14]
[1732694683454,10.55981881,233.74,233.63,2.72]
[1732694683660,2.9,233.75,233.71,2.1399]
[1732694684461,5.0396,233.75,233.7,2.14]
[1732694685960,2.9,233.75,233.63,2.72]
[1732694686360,13.45981881,233.75,233.63,2.72]
[1732694686559,15.59931881,233.75,233.66,2.1403]
[1732694686759,15.59931881,233.75,233.63,2.72]
[1732694687060,13.45981881,233.75,233.63,2.72]
[1732694687260,13.45981881,233.75,233.69,2.14]
[1732694687752,15.59941881,233.75,233.69,2.14]
[1732694688557,15.59941881,233.75,233.7,2.14]
[1732694688853,13.45981881,233.75,233.7,2.14]
[1732694689255,13.45981881,233.75,233.63,2.72]
[1732694689456,13.45981881,233.75,233.68,2.1401]
[1732694689660,13.45981881,233.75,233.63,2.72]
[1732694689862,15.59931881,233.75,233.63,2.72]
[1732694690562,13.45981881,233.75,233.63,2.72]
[1732694690762,2.1396,233.74,233.68,2.1401]
[1732694690962,13.45981881,233.75,233.63,2.72]
[1732694690963,2.9,233.75,233.63,2.72]
[1732694691160,10.55981881,233.78,233.64,11.81551881]
[1732694692068,12.69911881,233.78,233.71,2.1398]
[1732694692766,12.69911881,233.78,233.64,11.81551881]
[1732694692767,4.8592,233.79,233.64,11.81551881]
[1732694693458,2.1391,233.8,233.64,11.81551881]
[1732694693663,10.55981881,233.81,233.64,11.81551881]
[1732694693966,13.27981881,233.81,233.64,11.81551881]
[1732694694166,2.1393,233.78,233.64,11.81551881]
[1732694695061,2.1393,233.78,233.72,2.1398]
[1732694695662,2.1393,233.78,233.71,2.1399]
[1732694696766,2.1394,233.77,233.69,2.14]
[1732694696969,10.55981881,233.78,233.66,2.72]
[1732694697666,2.1393,233.77,233.7,2.1399]
[1732694698361,6.75440778,233.75,233.7,2.1399]
[1732694698766,6.75440778,233.75,233.67,6.75440778]
[1732694699669,6.75440778,233.73,233.66,2.72]
[1732694700465,6.75440778,233.73,233.7,2.1399]
[1732694700667,2.1393,233.78,233.67,6.75440778]
[1732694700969,2.72,233.81,233.67,6.75440778]
[1732694700970,6.75440778,233.75,233.67,6.75440778]
[1732694701164,6.75440778,233.75,233.7,2.14]
[1732694703267,6.75440778,233.75,233.67,6.75440778]
[1732694703469,6.75440778,233.71,233.62,6.75440778]
[1732694704170,9.29440778,233.75,233.66,6.75440778]
[1732694704364,9.29440778,233.75,233.68,6.75440778]
[1732694704365,2.54,233.75,233.68,6.75440778]
[1732694706380,2.54,233.75,233.65,10.55201079]
[1732694707374,2.54,233.79,233.73,2.1397]
[1732694707769,10.55201079,233.81,233.65,13.09201079]
[1732694707974,2.54,233.79,233.74,2.1396]
[1732694708475,2.54,233.82,233.77,2.1393]